fUST/lending_fUST_20250306
["ID","MTS","AMOUNT","RATE_DAILY","PERIOD"]
[355519175,1741233038173,-500.0,0.00036994,15]
[355519176,1741233038182,-500.0,0.00036994,2]
[355519177,1741233038192,-478.88379861,0.00036994,15]
[355519178,1741233038201,-500.0,0.00036994,2]
[355519179,1741233038211,-500.0,0.00036994,15]
[355519180,1741233038220,-500.0,0.00036994,2]
[355519181,1741233038230,-500.0,0.00036994,15]
[355519182,1741233038240,-489.79435807,0.00036994,2]
[355519184,1741233040393,-10.20564193,0.00036994,2]
[355519185,1741233040403,-500.0,0.00036994,15]
[355519186,1741233040413,-500.0,0.00036994,2]
[355519187,1741233040422,-500.0,0.00036994,15]
[355519188,1741233040432,-500.0,0.00036994,2]
[355519189,1741233040441,-500.0,0.00036994,15]
[355519190,1741233040450,-500.0,0.00036994,15]
[355519191,1741233040460,-500.0,0.00036994,2]
[355519192,1741233040469,-500.0,0.00036994,2]
[355519193,1741233040479,-500.0,0.00036994,2]
[355519194,1741233040489,-500.0,0.00036994,15]
[355519195,1741233040498,-500.0,0.00036994,2]
[355519196,1741233040507,-500.0,0.00036994,15]
[355519197,1741233040517,-500.0,0.00036994,2]
[355519198,1741233040526,-500.0,0.00036994,2]
[355519199,1741233040536,-500.0,0.00036994,15]
[355519200,1741233040545,-500.0,0.00036994,2]
[355519201,1741233040555,-500.0,0.00036994,15]
[355519202,1741233040564,-500.0,0.00036994,2]
[355519203,1741233040579,-500.0,0.00036994,15]
[355519205,1741233040588,-500.0,0.00036994,2]
[355519206,1741233040598,-500.0,0.00036994,2]
[355519207,1741233040607,-500.0,0.00036994,15]
[355519208,1741233040616,-500.0,0.00036994,15]
[355519209,1741233040626,-500.0,0.00036994,2]
[355519210,1741233040643,-500.0,0.00036994,15]
[355519211,1741233040653,-500.0,0.00036994,2]
[355519212,1741233040674,-500.0,0.00036994,15]
[355519213,1741233040687,-500.0,0.00036994,2]
[355519214,1741233040696,-500.0,0.00036994,2]
[355519215,1741233040706,-500.0,0.00036994,15]
[355519216,1741233040716,-500.0,0.00036994,15]
[355519217,1741233040725,-500.0,0.00036994,2]
[355519218,1741233040735,-500.0,0.00036994,15]
[355519219,1741233040745,-500.0,0.00036994,2]
[355519220,1741233040755,-500.0,0.00036994,15]
[355519221,1741233040764,-500.0,0.00036994,2]
[355519222,1741233040774,-500.0,0.00036994,15]
[355519223,1741233040783,-500.0,0.00036994,2]
[355519224,1741233040793,-245.28857095,0.00036994,15]
[355519225,1741233040803,-500.0,0.00036994,2]
[355519226,1741233040812,-500.0,0.00036994,15]
[355519227,1741233040822,-500.0,0.00036994,2]
[355519228,1741233040832,-500.0,0.00036994,15]
[355519229,1741233040842,-500.0,0.00036994,2]
[355519230,1741233040851,-500.0,0.00036994,2]
[355519231,1741233040861,-500.0,0.00036994,15]
[355519232,1741233040870,-318.13491341,0.00036994,2]
[355519233,1741233040880,-500.0,0.00036994,2]
[355519234,1741233040889,-500.0,0.00036994,2]
[355519235,1741233040899,-500.0,0.00036994,2]
[355519236,1741233040908,-500.0,0.00036994,2]
[355519237,1741233040917,-25205.96627739,0.00036995,5]
[355519238,1741233040926,-4687.66276048,0.00036995,5]
[355519261,1741233045973,-14517.49584456,0.00036995,5]
[355519263,1741233046029,-58474.4161633,0.00036995,5]
[355519264,1741233046043,-151.0,0.00036995,14]
[355519265,1741233046054,-282.221925,0.00036995,14]
[355519266,1741233046063,-151.0,0.00036995,14]
[355519267,1741233046073,-151.0,0.00036995,14]
[355519268,1741233046165,-242.146356,0.00036995,14]
[355519269,1741233046176,-282.221925,0.00036995,14]
[355519270,1741233046185,-151.0,0.00036995,14]
[355519271,1741233046195,-233.710896,0.00036995,14]
[355519272,1741233046205,-151.0,0.00036996,14]
[355519273,1741233046215,-151.0,0.00036996,14]
[355519274,1741233046226,-151.0,0.00036996,14]
[355519275,1741233046235,-267.43025,0.00036996,14]
[355519276,1741233046246,-151.0,0.00036996,14]
[355519277,1741233046255,-151.0,0.00036996,14]
[355519278,1741233046265,-151.0,0.00036996,14]
[355519279,1741233046281,-151.0,0.00036996,14]
[355519280,1741233046295,-151.0,0.00036996,14]
[355519281,1741233046305,-151.0,0.00036996,14]
[355519282,1741233046315,-166.472114,0.00036996,14]
[355519283,1741233046326,-301.579476,0.00036996,14]
[355519284,1741233046336,-151.0,0.00036996,14]
[355519285,1741233046346,-151.0,0.00036996,14]
[355519286,1741233046356,-282.221925,0.00036996,14]
[355519287,1741233046366,-282.221925,0.00036996,14]
[355519288,1741233046376,-282.221925,0.00036996,14]
[355519289,1741233046386,-282.221925,0.00036996,14]
[355519290,1741233046396,-151.0,0.00036997,14]
[355519291,1741233046406,-151.0,0.00036997,14]
[355519292,1741233046416,-151.0,0.00036997,14]
[355519293,1741233046426,-151.0,0.00036997,14]
[355519294,1741233046437,-151.0,0.00036997,14]
[355519295,1741233046447,-151.0,0.00036997,14]
[355519296,1741233046458,-151.0,0.00036997,14]
[355519297,1741233046468,-151.0,0.00036997,14]
[355519298,1741233046478,-151.0,0.00036997,14]
[355519299,1741233046488,-151.0,0.00036997,14]
[355519300,1741233046499,-151.0,0.00036997,14]
[355519301,1741233046509,-151.0,0.00036997,14]
[355519302,1741233046520,-151.0,0.00036997,14]
[355519303,1741233046530,-151.0,0.00036997,14]
[355519304,1741233046540,-154.735552,0.00036997,14]
[355519305,1741233046550,-151.0,0.00036997,14]
[355519306,1741233046560,-151.0,0.00036997,14]
[355519307,1741233046569,-160.070529,0.00036997,14]
[355519308,1741233046580,-151.0,0.00036998,14]
[355519309,1741233046589,-151.0,0.00036998,14]
[355519310,1741233046599,-151.0,0.00036998,14]
[355519311,1741233046609,-151.0,0.00036998,14]
[355519312,1741233046619,-151.0,0.00036998,14]
[355519313,1741233046629,-154.033353,0.00036998,14]
[355519314,1741233046639,-151.0,0.00036998,14]
[355519315,1741233046648,-151.0,0.00036998,14]
[355519316,1741233046658,-151.0,0.00036998,14]
[355519317,1741233046668,-151.0,0.00036998,14]
[355519318,1741233046701,-151.0,0.00036998,14]
[355519319,1741233046721,-151.0,0.00036998,14]
[355519320,1741233046740,-153.572112,0.00036998,14]
[355519321,1741233046763,-164.542225,0.00036998,14]
[355519322,1741233046783,-151.0,0.00036998,14]
[355519323,1741233046805,-151.0,0.00036998,14]
[355519324,1741233046823,-156.22818,0.00036998,14]
[355519325,1741233046838,-151.0,0.00036998,14]
[355519326,1741233046857,-151.0,0.00036998,14]
[355519327,1741233046882,-151.0,0.00036998,14]
[355519328,1741233046900,-151.0,0.00036998,14]
[355519329,1741233046913,-151.0,0.00036998,14]
[355519330,1741233046933,-163.583297,0.00036998,14]
[355519331,1741233046947,-151.0,0.00036998,14]
[355519332,1741233046965,-151.0,0.00036998,14]
[355519333,1741233046982,-151.0,0.00036998,14]
[355519334,1741233047005,-151.0,0.00036998,14]
[355519335,1741233047025,-151.0,0.00036998,14]
[355519336,1741233047043,-151.0,0.00036998,14]
[355519337,1741233047060,-151.0,0.00036998,14]
[355519338,1741233047076,-151.0,0.00036998,14]
[355519339,1741233047093,-264.799136,0.00036998,14]
[355519340,1741233047109,-151.0,0.00036998,14]
[355519341,1741233047124,-151.0,0.00036998,14]
[355519342,1741233047140,-244.113249,0.00036998,14]
[355519343,1741233047156,-151.0,0.00036998,14]
[355519344,1741233047171,-151.0,0.00036998,14]
[355519345,1741233047186,-151.0,0.00036998,14]
[355519346,1741233047203,-151.0,0.00036998,14]
[355519347,1741233047218,-500.0,0.00036999,15]
[355519348,1741233047235,-329.88333048,0.00036999,15]
[355519349,1741233047249,-500.0,0.00036999,15]
[355519350,1741233047264,-500.0,0.00036999,15]
[355519351,1741233047280,-180.84624352,0.00036999,15]
[355519352,1741233047294,-500.0,0.00036999,15]
[355519353,1741233047309,-158.52469293,0.00036999,15]
[355519354,1741233047325,-500.0,0.00036999,15]
[355519355,1741233047340,-500.0,0.00036999,15]
[355519356,1741233047355,-500.0,0.00036999,15]
[355519357,1741233047370,-500.0,0.00036999,15]
[355519358,1741233047385,-86.90990716,0.00036999,15]
[355520129,1741234240311,-1144.94307578,0.00020712,2]
[355520130,1741234240328,-353.3814144,0.00032465,120]
[355520152,1741234243248,-146.6185856,0.00032465,120]
[355520153,1741234243257,-500.0,0.00034274,120]
[355520154,1741234243266,-500.0,0.00034383,12]
[355520155,1741234243276,-435.81861232,0.00034895,2]
[355520156,1741234243286,-500.0,0.00035329,120]
[355520157,1741234243295,-400.0,0.00035356,2]
[355520158,1741234243304,-2319.3956032,0.00035357,2]
[355520159,1741234243315,-264.85569165,0.00035636,2]
[355520160,1741234243324,-246.165061,0.0003589,2]
[355520161,1741234243334,-293.0,0.0003589,2]
[355520162,1741234243343,-293.0,0.00036,2]
[355520163,1741234243353,-8727.30405807,0.00036,7]
[355520164,1741234243363,-416.66666667,0.00036,7]
[355520165,1741234243372,-500.0,0.00036013,120]
[355520166,1741234243382,-4868.10512852,0.00036516,2]
[355520167,1741234243392,-461.77995757,0.0003664,2]
[355520168,1741234243401,-1195.38346207,0.00036799,2]
[355520169,1741234243413,-1195.38346206,0.00036799,2]
[355520170,1741234243427,-1195.38346206,0.000368,2]
[355520171,1741234243437,-1195.38346206,0.000368,2]
[355520172,1741234243447,-1195.38346206,0.000368,2]
[355520173,1741234243458,-461.77995758,0.00036837,2]
[355520174,1741234243468,-500.0,0.00036873,5]
[355520175,1741234243478,-500.0,0.00036877,2]
[355520176,1741234243487,-540.0,0.00036877,2]
[355520177,1741234243499,-583.2,0.00036877,2]
[355520178,1741234243509,-629.856,0.00036877,2]
[355520179,1741234243518,-680.24448,0.00036877,2]
[355520180,1741234243528,-734.6640384,0.00036877,2]
[355520181,1741234243538,-793.43716147,0.00036877,2]
[355520182,1741234243548,-856.91213439,0.00036877,2]
[355520183,1741234243558,-925.46510514,0.00036877,2]
[355520184,1741234243568,-1000.0,0.00036877,2]
[355520185,1741234243578,-1009.44527778,0.00036889,3]
[355520186,1741234243588,-2523.61319445,0.00036889,3]
[355520187,1741234243598,-2523.61319445,0.00036889,3]
[355520188,1741234243608,-461.61910994,0.00036895,15]
[355520189,1741234243618,-500.0,0.00036895,2]
[355520190,1741234243628,-500.0,0.00036895,15]
[355520191,1741234243638,-500.0,0.00036895,15]
[355520192,1741234243647,-500.0,0.00036895,2]
[355520193,1741234243657,-500.0,0.00036895,15]
[355520194,1741234243667,-500.0,0.00036895,15]
[355520195,1741234243677,-500.0,0.00036895,2]
[355520196,1741234243687,-500.0,0.00036895,15]
[355520197,1741234243697,-500.0,0.00036895,2]
[355520198,1741234243707,-500.0,0.00036895,15]
[355520199,1741234243717,-444.48886926,0.00036895,15]
[355520200,1741234243726,-500.0,0.00036895,2]
[355520201,1741234243736,-500.0,0.00036895,15]
[355520202,1741234243746,-500.0,0.00036895,15]
[355520203,1741234243756,-500.0,0.00036895,2]
[355520204,1741234243765,-500.0,0.00036895,15]
[355520205,1741234243775,-500.0,0.00036895,2]
[355520206,1741234243784,-500.0,0.00036895,2]
[355520207,1741234243794,-174.5288571,0.00036895,15]
[355520208,1741234243804,-500.0,0.00036895,2]
[355520209,1741234243814,-500.0,0.00036895,2]
[355520210,1741234243924,-500.0,0.00036895,15]
[355520211,1741234243933,-500.0,0.00036895,2]
[355520212,1741234243943,-500.0,0.00036895,15]
[355520213,1741234243953,-500.0,0.00036895,2]
[355520214,1741234243962,-500.0,0.00036895,15]
[355520215,1741234243971,-500.0,0.00036895,15]
[355520216,1741234243981,-500.0,0.00036895,2]
[355520217,1741234243991,-500.0,0.00036895,2]
[355520218,1741234244001,-500.0,0.00036895,2]
[355520219,1741234244010,-500.0,0.00036895,2]
[355520220,1741234244020,-500.0,0.00036895,2]
[355520221,1741234244029,-500.0,0.00036895,2]
[355520222,1741234244039,-500.0,0.00036895,2]
[355520223,1741234244048,-500.0,0.00036895,2]
[355520224,1741234244058,-343.04307981,0.00036895,2]
[355520225,1741234244067,-500.0,0.00036895,2]
[355520226,1741234244077,-500.0,0.00036895,2]
[355520227,1741234244087,-500.0,0.00036895,2]
[355520228,1741234244096,-500.0,0.00036895,2]
[355520229,1741234244106,-500.0,0.00036895,2]
[355520230,1741234244115,-500.0,0.00036895,2]
[355520231,1741234244125,-500.0,0.00036895,2]
[355520232,1741234244134,-500.0,0.00036895,2]
[355520233,1741234244145,-500.0,0.00036895,2]
[355520234,1741234244154,-500.0,0.00036895,2]
[355520235,1741234244164,-500.0,0.00036895,2]
[355520236,1741234244173,-500.0,0.00036895,2]
[355520237,1741234244182,-500.0,0.00036895,2]
[355520238,1741234244192,-500.0,0.00036895,2]
[355520239,1741234244201,-500.0,0.00036895,2]
[355520240,1741234244210,-500.0,0.00036895,2]
[355520241,1741234244219,-500.0,0.00036895,2]
[355520242,1741234244229,-500.0,0.00036895,2]
[355520243,1741234244238,-500.0,0.00036895,2]
[355520244,1741234244247,-500.0,0.00036895,2]
[355520245,1741234244257,-500.0,0.00036895,2]
[355520246,1741234244266,-500.0,0.00036895,2]
[355520247,1741234244276,-500.0,0.00036895,2]
[355520248,1741234244286,-500.0,0.00036895,2]
[355520249,1741234244295,-500.0,0.00036895,2]
[355520250,1741234244304,-500.0,0.00036895,2]
[355520251,1741234244314,-500.0,0.00036895,2]
[355520252,1741234244323,-500.0,0.00036895,2]
[355520253,1741234244333,-500.0,0.00036895,2]
[355520254,1741234244343,-500.0,0.00036895,2]
[355520255,1741234244352,-500.0,0.00036895,2]
[355520256,1741234244362,-500.0,0.00036895,15]
[355520257,1741234244372,-182.67783864,0.00036895,15]
[355520258,1741234244382,-198.272215,0.00036896,14]
[355520259,1741234244392,-5553.91369098,0.00036898,2]
[355520260,1741234244401,-151.0,0.00036898,14]
[355520261,1741234244411,-151.0,0.00036898,14]
[355520262,1741234244424,-185.390138,0.00036898,14]
[355520263,1741234244434,-151.0,0.00036898,14]
[355520264,1741234244444,-151.0,0.00036898,14]
[355520265,1741234244454,-151.0,0.00036898,14]
[355520266,1741234244463,-151.0,0.00036898,14]
[355520267,1741234244474,-155.569914,0.00036898,14]
[355520268,1741234244483,-1000.0,0.00036898,120]
[355520269,1741234244497,-151.0,0.00036898,14]
[355520270,1741234244507,-151.0,0.00036898,14]
[355520271,1741234244517,-197.555347,0.00036898,14]
[355520272,1741234244526,-197.555347,0.00036898,14]
[355520273,1741234244536,-197.555347,0.00036898,14]
[355520274,1741234244545,-197.555347,0.00036898,14]
[355520275,1741234244555,-160.337269,0.00036898,14]
[355520276,1741234244564,-471.556028,0.00036898,14]
[355520277,1741234244574,-471.556028,0.00036898,14]
[355520278,1741234244583,-471.556028,0.00036898,14]
[355520279,1741234244593,-471.556028,0.00036898,14]
[355520280,1741234244602,-302.85,0.00036898,14]
[355520281,1741234244612,-302.85,0.00036898,14]
[355520282,1741234244622,-302.85,0.00036898,14]
[355520283,1741234244632,-302.85,0.00036898,14]
[355520284,1741234244641,-500.0,0.00036898,15]
[355520285,1741234244651,-500.0,0.00036898,15]
[355520286,1741234244660,-500.0,0.00036898,15]
[355520287,1741234244670,-476.59237046,0.00036898,15]
[355520288,1741234244680,-230.91833134,0.00036898,15]
[355520289,1741234244690,-376.05604241,0.00036898,15]
[355520290,1741234244699,-500.0,0.00036898,15]
[355520291,1741234244709,-500.0,0.00036898,15]
[355520292,1741234244719,-500.0,0.00036898,15]
[355520293,1741234244728,-500.0,0.00036898,15]
[355520294,1741234244738,-500.0,0.00036898,15]
[355520295,1741234244756,-534.8943129,0.00036898,15]
[355520296,1741234244770,-376.05604241,0.00036898,15]
[355520297,1741234244781,-500.0,0.00036898,15]
[355520298,1741234244791,-500.0,0.00036898,15]
[355520299,1741234244801,-78871.01147926,0.00036898,5]
[355520300,1741234244812,-232287.78885797,0.00036899,5]
[355520301,1741234244822,-151.0,0.00036899,14]
[355520302,1741234244832,-151.0,0.00036899,14]
[355520303,1741234244843,-151.0,0.00036899,14]
[355520304,1741234244853,-151.0,0.00036899,14]
[355520305,1741234244863,-151.0,0.00036899,14]
[355520306,1741234244873,-151.0,0.00036899,14]
[355520307,1741234244883,-151.0,0.00036899,14]
[355520308,1741234244893,-155.971523,0.00036899,14]
[355520309,1741234244903,-446.0812,0.00036899,14]
[355520310,1741234244912,-446.0812,0.00036899,14]
[355520311,1741234244922,-446.0812,0.00036899,14]
[355520312,1741234244932,-151.0,0.00036899,14]
[355520313,1741234244942,-151.0,0.00036899,14]
[355520314,1741234244952,-151.0,0.00036899,14]
[355520315,1741234244961,-151.0,0.00036899,14]
[355520316,1741234244971,-151.0,0.00036899,14]
[355520317,1741234244981,-151.0,0.00036899,14]
[355520318,1741234244991,-151.0,0.00036899,14]
[355520319,1741234245002,-230.206908,0.00036899,14]
[355520320,1741234245012,-164.198109,0.00036899,14]
[355520321,1741234245022,-151.0,0.00036899,14]
[355520322,1741234245032,-151.0,0.00036899,14]
[355520323,1741234245042,-167.962744,0.00036899,14]
[355520324,1741234245051,-197.555347,0.00036899,14]
[355520325,1741234245061,-197.555347,0.00036899,14]
[355520326,1741234245072,-197.555347,0.00036899,14]
[355520327,1741234245082,-197.555347,0.00036899,14]
[355520328,1741234245091,-197.555347,0.00036899,14]
[355520329,1741234245102,-197.555347,0.00036899,14]
[355520330,1741234245111,-471.556028,0.00036899,14]
[355520331,1741234245121,-471.556028,0.00036899,14]
[355520332,1741234245130,-471.556028,0.00036899,14]
[355520333,1741234245139,-471.556028,0.00036899,14]
[355520334,1741234245149,-471.556028,0.00036899,14]
[355520335,1741234245159,-471.556028,0.00036899,14]
[355520336,1741234245168,-302.85,0.00036899,14]
[355520337,1741234245178,-302.85,0.00036899,14]
[355520338,1741234245188,-302.85,0.00036899,14]
[355520339,1741234245197,-302.85,0.00036899,14]
[355520340,1741234245207,-302.85,0.00036899,14]
[355520341,1741234245217,-302.85,0.00036899,14]
[355520342,1741234245227,-222000.0,0.00036899,2]
[355520343,1741234245236,-1000.0,0.00036926,120]
[355520344,1741234245246,-1000.0,0.00036953,120]
[355520345,1741234245367,-166.15112181,0.00036973,2]
[355520346,1741234245378,-500.0,0.00036973,5]
[355520347,1741234245389,-500.0,0.00036973,2]
[355520348,1741234245399,-503.27355692,0.00036973,5]
[355520349,1741234245409,-581.39287826,0.00036973,5]
[355520350,1741234245425,-500.0,0.00036973,5]
[355520351,1741234245434,-500.0,0.00036973,5]
[355520353,1741234245443,-500.0,0.00036973,2]
[355520354,1741234245453,-500.0,0.00036973,5]
[355520355,1741234245463,-502.66046889,0.00036973,5]
[355520356,1741234245472,-500.0,0.00036973,5]
[355520357,1741234245482,-151.32970012,0.00036973,2]
[355520358,1741234245492,-508.24025536,0.00036973,5]
[355520360,1741234245502,-509.91809884,0.00036973,5]
[355520361,1741234245512,-500.0,0.00036973,5]
[355520362,1741234245521,-500.0,0.00036973,5]
[355520363,1741234245531,-500.0,0.00036973,5]
[355520364,1741234245540,-500.0,0.00036973,5]
[355520365,1741234245550,-500.0,0.00036973,5]
[355520366,1741234245559,-500.0,0.00036973,5]
[355520367,1741234245569,-151.0,0.00036973,14]
[355520368,1741234245578,-151.553366,0.00036973,14]
[355520369,1741234245587,-1000.0,0.0003698,120]
[355520370,1741234245597,-197.555347,0.00036989,14]
[355520371,1741234245606,-197.555347,0.00036989,14]
[355520372,1741234245616,-176.98123,0.0003699,14]
[355520373,1741234245626,-291.258007,0.0003699,14]
[355520374,1741234245635,-3533.05847223,0.0003699,3]
[355520375,1741234245645,-416.66666667,0.0003699,3]
[355520376,1741234245655,-471.556028,0.0003699,14]
[355520377,1741234245664,-471.556028,0.0003699,14]
[355520378,1741234245674,-302.85,0.0003699,14]
[355520379,1741234245683,-302.85,0.0003699,14]
[355520380,1741234245693,-446.0812,0.00036995,14]
[355520381,1741234245702,-501.44599558,0.00036997,2]
[355520382,1741234245712,-251.98,0.00036997,2]
[355520383,1741234245721,-153.666431,0.00036998,14]
[355520384,1741234245731,-198.910772,0.00036998,14]
[355520385,1741234245741,-155.044598,0.00036998,14]
[355520386,1741234245750,-152.122803,0.00036998,14]
[355520387,1741234245759,-256.6397476,0.00036999,15]
[355520388,1741234245769,-35458.81262384,0.00037,120]
[355520483,1741235432435,-885.33710678,0.0002799,2]
[355520485,1741235432445,-4167.7515239,0.0003,3]
[355520487,1741235432454,-1220.09764671,0.000325,30]
[355520489,1741235432463,-290.54574155,0.00034799,2]
[355520491,1741235432472,-400.0,0.00035258,2]
[355520493,1741235432482,-233.856807,0.0003589,2]
[355520495,1741235432492,-220.0,0.0003589,2]
[355520497,1741235432501,-200.0,0.00036,120]
[355520499,1741235432511,-220.0,0.00036,2]
[355520501,1741235432520,-381.1498102,0.00036777,101]
[355520503,1741235432529,-342.47058364,0.000368,2]
[355520505,1741235432539,-1233.12863569,0.000368,2]
[355520507,1741235432548,-500.0,0.00036878,2]
[355520509,1741235432557,-540.0,0.00036878,2]
[355520511,1741235432566,-583.2,0.00036878,2]
[355520513,1741235432576,-629.856,0.00036878,2]
[355520515,1741235432586,-680.24448,0.00036878,2]
[355520517,1741235432595,-734.6640384,0.00036878,2]
[355520519,1741235432604,-793.43716147,0.00036878,2]
[355520521,1741235432614,-856.91213439,0.00036878,2]
[355520524,1741235432624,-925.46510514,0.00036878,2]
[355520525,1741235432634,-1000.0,0.00036878,2]
[355520528,1741235432643,-211.51077804,0.00036899,120]
[355520529,1741235432653,-1000.0,0.00036899,120]
[355520531,1741235432662,-500.0,0.00036899,2]
[355520533,1741235432674,-598.5475027,0.00036899,2]
[355520535,1741235432683,-254.32,0.00036899,2]
[355520537,1741235432693,-500.0,0.00036899,15]
[355520539,1741235432702,-500.0,0.00036899,15]
[355520542,1741235432712,-500.0,0.00036899,2]
[355520543,1741235432722,-241.61431745,0.00036899,15]
[355520546,1741235432732,-500.0,0.00036899,2]
[355520548,1741235432741,-500.0,0.00036899,2]
[355520549,1741235432750,-500.0,0.00036899,2]
[355520551,1741235432759,-500.0,0.00036899,2]
[355520554,1741235432769,-500.0,0.00036899,2]
[355520556,1741235432779,-500.0,0.00036899,2]
[355520558,1741235432789,-500.0,0.00036899,2]
[355520559,1741235432798,-500.0,0.00036899,2]
[355520562,1741235432808,-500.0,0.00036899,2]
[355520564,1741235432821,-500.0,0.00036899,2]
[355520566,1741235432830,-500.0,0.00036899,2]
[355520568,1741235432840,-500.0,0.00036899,2]
[355520570,1741235432850,-500.0,0.00036899,2]
[355520571,1741235432859,-500.0,0.00036899,2]
[355520574,1741235432869,-500.0,0.00036899,2]
[355520576,1741235432879,-500.0,0.00036899,2]
[355520578,1741235432889,-500.0,0.00036899,2]
[355520580,1741235432898,-500.0,0.00036899,2]
[355520582,1741235432908,-500.0,0.00036899,2]
[355520584,1741235432918,-500.0,0.00036899,2]
[355520586,1741235432927,-500.0,0.00036899,2]
[355520588,1741235432937,-500.0,0.00036899,2]
[355520590,1741235432946,-500.0,0.00036899,2]
[355520592,1741235432956,-500.0,0.00036899,2]
[355520593,1741235432965,-500.0,0.00036899,2]
[355520595,1741235432975,-180.87387718,0.00036899,2]
[355520597,1741235432984,-500.0,0.00036899,2]
[355520599,1741235432994,-566.80560882,0.00036899,2]
[355520601,1741235433003,-500.0,0.00036899,2]
[355520603,1741235433013,-500.0,0.00036899,15]
[355520605,1741235433023,-500.0,0.00036899,15]
[355520607,1741235433034,-500.0,0.00036899,15]
[355520610,1741235433044,-500.0,0.00036899,15]
[355520612,1741235433054,-500.0,0.00036899,15]
[355520614,1741235433064,-500.0,0.00036899,15]
[355520615,1741235433074,-222000.0,0.000369,2]
[355520617,1741235433084,-933.98203047,0.000369,7]
[355520619,1741235433094,-1000.0,0.00036927,120]
[355520621,1741235433105,-1000.0,0.00036954,120]
[355520623,1741235433115,-500.78879374,0.00036973,5]
[355520625,1741235433125,-500.0,0.00036973,5]
[355520627,1741235433135,-503.07517328,0.00036973,5]
[355520629,1741235433145,-500.0,0.00036973,5]
[355520631,1741235433154,-501.48347887,0.00036973,2]
[355520633,1741235433164,-313.20900788,0.00036973,5]
[355520635,1741235433174,-500.0,0.00036973,5]
[355520637,1741235433183,-459.78680322,0.00036973,5]
[355520640,1741235433194,-500.0,0.00036973,5]
[355520642,1741235433204,-462.65930401,0.00036973,5]
[355520644,1741235433213,-159.15209664,0.00036973,5]
[355520646,1741235433223,-501.38274448,0.00036973,5]
[355520648,1741235433233,-160.15623863,0.00036973,5]
[355520650,1741235433242,-158.6516098,0.00036973,2]
[355520652,1741235433252,-160.15619154,0.00036973,5]
[355520653,1741235433263,-499.0825377,0.00036973,5]
[355520655,1741235433273,-500.0,0.00036973,5]
[355520658,1741235433284,-501.91595113,0.00036973,5]
[355520660,1741235433294,-205.81124287,0.00036973,5]
[355520661,1741235433304,-510.66594309,0.00036973,5]
[355520663,1741235433315,-160.4242709,0.00036973,5]
[355520665,1741235433325,-160.14790424,0.00036973,5]
[355520667,1741235433334,-160.15305546,0.00036973,5]
[355520670,1741235433344,-500.0,0.00036973,5]
[355520672,1741235433354,-160.15618863,0.00036973,5]
[355520674,1741235433364,-500.53457546,0.00036973,5]
[355520676,1741235433373,-160.15898944,0.00036973,5]
[355520678,1741235433383,-500.0,0.00036973,5]
[355520680,1741235433394,-500.0,0.00036973,2]
[355520689,1741235433474,-500.0,0.00036973,5]
[355520691,1741235433484,-500.0,0.00036973,5]
[355520693,1741235433494,-500.0,0.00036973,5]
[355520695,1741235433503,-500.0,0.00036973,5]
[355520697,1741235433513,-500.0,0.00036973,5]